Cogmind - Beta 12 X4 @@@ ROGUE MODE // 2022.11.12 @ 23:14:04 // AFD2019/Pay2Buy Player: aoemica Result: Escaped! Performance ------------- Evolutions (9) 4500 Regions Visited (31) 6200 Robots Destroyed (1423) 7115 Value Destroyed (68856) 68856 Prototype IDs (306) 6120 Alien Tech Used (0) 0 Bonus (85246) 85246 TOTAL SCORE: 178037 Bonus ------- Triggered High Security 4000 High Alert Combat Kills 58284 Follower Combat Kills 305 Entered DSFs 500 Network Hubs Disabled 600 Aligned with FarCom 300 Met Data Miner 300 Met Imprinter 300 Met Warlord at Base 500 MAIN.C Attacked Warlord 500 Warlord Defense Kills 6122 Met Warlord at Research 2000 Destroyed MAIN.C Guards 500 Met MAIN.C 5000 Destroyed MAIN.C Shell 5000 Win 3000 Friendly Fire -1965 Cogmind --------- Core Integrity 785/1600 Matter 300/300 Energy 98/100 System Corruption 1% Temperature Cool (0) Movement Core (50) Location To Epsilon Eridani Parts ------- > --- POWER (4) -------- (None) > --- PROPULSION (6) --- Enhanced Armored Medium Treads Enhanced Armored Medium Treads Enhanced Armored Medium Treads Enhanced Armored Medium Treads Improved Heavy Siege Treads > --- UTILITY (11) ----- 2N-1CE's Frost Array Experimental Optical Array Advanced Targeting Computer Experimental Core Analyzer > --- WEAPON (4) ------- (None) > --- INVENTORY (10) --- Advanced Energy Well (500) Advanced Matter Compressor (400) Precision Matter Filter Antimissile System Improved System Restoration Module Long-range Tractor Beam Long-range Tractor Beam Compact HERF Cannon Linear Accelerator Neutron Missile Launcher Peak State ------------ > --- POWER ------------ Graviton Reactor Quantum Reactor Improved Quantum Reactor Improved Quantum Reactor > --- PROPULSION ------- Improved Heavy Siege Treads Improved Heavy Siege Treads Biometal Heavy Treads > --- UTILITY ---------- 2N-1CE's Frost Array Experimental Optical Array Advanced Targeting Computer Experimental Core Analyzer Advanced Weapon Cycler Centrium Heavy Armor Plating Centrium Heavy Armor Plating Experimental Force Field Antimissile System > --- WEAPON ----------- Linear Accelerator Linear Accelerator Linear Accelerator Compact Linear Accelerator > --- INVENTORY -------- Advanced Energy Well Advanced Matter Compressor Precision Matter Filter Advanced Kinecellerator Improved System Restoration Module Improved System Restoration Module Long-range Tractor Beam Long-range Tractor Beam Compact HERF Cannon Neutron Missile Launcher [Rating: 221] Favorites ----------- Power Cooled Deuterium Engine Engine Cooled Deuterium Engine Reactor Heavy Antimatter Reactor Propulsion Armored Medium Treads Treads Armored Medium Treads Leg Armored Leg Utility Long-range Tractor Beam Device Long-range Tractor Beam Storage Energy Well Processor Experimental Optical Array Hackware Experimental Hacking Suite Protection Hardened Medium Armor Plating Weapon Long-range Missile Launcher Energy Gun Improved Spread Laser Energy Cannon Long-range Proton Cannon Ballistic Gun Improved Assault Rifle Ballistic Cannon Linear Accelerator Launcher Long-range Missile Launcher Impact Weapon Shock Maul Build | -11 -10 -10 -10 -9 -8 -8 -7 -7 -7 -7 -6 -6 -6 -6 -6 -5 -5 -5 -5 -5 -5 -4 -4 -4 -4 -3 -3 -3 -2 -1 -1 ------- Run | Scr Mat Min Exi Min Mat Sto Fac Low Low Dat Pro Fac Low Low Zio Pro Fac Ext Cet Arc Hub Fac Upp Upp War Pro Res DSF Res Acc Com Slots Evolved 18 | . . . . . 4 . 2 . . . . 2 . . . . 2 . . . . 2 . . . . 2 . 2 2 . Power 3 | . . . . . . . . . . . . 1 . . . . . . . . . 1 . . . . . . . 1 . Propulsion 4 | . . . . . 2 . . . . . . . . . . . . . . . . . . . . . 1 . 1 . . Utility 9 | . . . . . 2 . 2 . . . . 1 . . . . 2 . . . . 1 . . . . 1 . . . . Weapon 2 | . . . . . . . . . . . . . . . . . . . . . . . . . . . . . 1 1 . Parts Attached 235 | . 16 4 . 5 22 36 23 . . . 1 54 3 1 . 4 18 4 2 . 3 7 1 . . . 1 1 3 3 23 Power 4 | . . . . . . 1 1 . . . . . . . . . 1 . . . . . . . . . . . . . 1 Engine 2 | . . . . . . 1 1 . . . . . . . . . . . . . . . . . . . . . . . . Core . | . . . . . . . . . . . . . . . . . . . . . . . . . . . . . . . . Reactor 2 | . . . . . . . . . . . . . . . . . 1 . . . . . . . . . . . . . 1 Propulsion 5 | . . . . . . 1 . . . . . 3 . . . . . . . . . . 1 . . . . . . . . Treads 3 | . . . . . . 1 . . . . . 1 . . . . . . . . . . 1 . . . . . . . . Leg 2 | . . . . . . . . . . . . 2 . . . . . . . . . . . . . . . . . . . Wheel . | . . . . . . . . . . . . . . . . . . . . . . . . . . . . . . . . Hover . | . . . . . . . . . . . . . . . . . . . . . . . . . . . . . . . . Flight . | . . . . . . . . . . . . . . . . . . . . . . . . . . . . . . . . Utility 65 | . . . . . 2 7 4 . . . 1 10 1 1 . 4 5 1 2 . 2 7 . . . . 1 . 2 . 15 Device 51 | . . . . . . 5 2 . . . 1 8 . 1 . 2 4 1 2 . . 7 . . . . 1 . 2 . 15 Storage 1 | . . . . . . . 1 . . . . . . . . . . . . . . . . . . . . . . . . Processor 3 | . . . . . 1 . . . . . . 1 . . . . . . . . 1 . . . . . . . . . . Hackware . | . . . . . . . . . . . . . . . . . . . . . . . . . . . . . . . . Protection 10 | . . . . . 1 2 1 . . . . 1 1 . . 2 1 . . . 1 . . . . . . . . . . Artifact . | . . . . . . . . . . . . . . . . . . . . . . . . . . . . . . . . Weapon 161 | . 16 4 . 5 20 27 18 . . . . 41 2 . . . 12 3 . . 1 . . . . . . 1 1 3 7 Energy Gun 26 | . . . . . 5 12 8 . . . . 1 . . . . . . . . . . . . . . . . . . . Energy Cannon 7 | . . . . . . . . . . . . . . . . . 3 1 . . 1 . . . . . . . . 1 1 Ballistic Gun 17 | . 9 3 . 2 3 . . . . . . . . . . . . . . . . . . . . . . . . . . Ballistic Cannon 30 | . . . . . 2 3 . . . . . 15 . . . . 4 . . . . . . . . . . . 1 1 4 Launcher 80 | . 7 1 . 3 10 12 10 . . . . 25 2 . . . 5 2 . . . . . . . . . 1 . . 2 Special Weapon . | . . . . . . . . . . . . . . . . . . . . . . . . . . . . . . . . Impact Weapon 1 | . . . . . . . . . . . . . . . . . . . . . . . . . . . . . . 1 . Slashing Weapon . | . . . . . . . . . . . . . . . . . . . . . . . . . . . . . . . . Piercing Weapon . | . . . . . . . . . . . . . . . . . . . . . . . . . . . . . . . . Special Melee Weapon . | . . . . . . . . . . . . . . . . . . . . . . . . . . . . . . . . Unidentified Prototypes 4 | . . . . . . . . . . . . 4 . . . . . . . . . . . . . . . . . . . Parts Lost 55 | . . . . 4 3 2 5 1 . . . 6 1 1 . . 4 1 1 1 3 3 . . 1 . . 1 . . 17 Power 7 | . . . . 1 . . 1 . . . . 1 . . . . . . . . . . . . . . . . . . 4 Propulsion 14 | . . . . 2 . 2 1 1 . . . 2 . . . . . . . . 1 . . . . . . . . . 5 Utility 24 | . . . . . 2 . 3 . . . . 2 1 1 . . 2 1 1 . 2 3 . . 1 . . . . . 5 Weapon 10 | . . . . 1 1 . . . . . . 1 . . . . 2 . . 1 . . . . . . . 1 . . 3 Highest Loss Streak 6 | . . . . 2 1 1 1 1 . . . 5 1 1 . . 1 1 1 1 1 2 . . 1 . . 1 . . 6 To Critical Strikes . | . . . . . . . . . . . . . . . . . . . . . . . . . . . . . . . . Average Slot Usage (%) 90 | . 85 85 85 90 88 97 99 99 100 100 100 97 100 95 93 93 83 87 87 88 88 86 79 78 77 83 79 80 73 81 80 Engine 7 | . 14 14 14 14 9 9 7 7 7 7 7 13 13 13 13 13 10 5 3 . . . . . . . . . . . . Reactor 4 | . . . . . . . . . . . . . . . . . . 5 7 11 11 14 15 15 15 15 14 14 13 13 15 Treads 14 | . . . . . 17 18 26 29 23 23 23 13 13 13 13 13 17 17 17 17 17 15 11 10 10 10 9 9 8 12 12 Leg 8 | . 28 28 28 27 18 17 2 . 7 7 7 12 13 13 13 13 . . . . . . . . . . . . . . . Device 20 | . . . . . 5 13 15 23 23 23 23 25 26 22 20 20 25 28 28 29 29 29 26 26 25 26 27 28 26 16 20 Processor 11 | . 14 14 14 14 11 10 7 7 7 7 14 13 13 13 13 13 11 11 11 11 11 10 10 10 10 14 14 14 13 12 12 Protection 6 | . . . . 6 8 9 14 7 7 7 7 6 6 6 6 5 5 5 5 5 5 5 5 5 5 5 3 4 4 4 4 Energy Cannon 2 | . . . . . . . . . . . . . . 2 6 6 3 3 5 5 5 4 5 5 5 5 4 4 2 1 . Ballistic Gun 1 | . 18 26 28 16 1 . . . . . . . . . . . . . . . . . . . . . . . . . . Ballistic Cannon 1 | . . . . . 4 1 . . . . . 2 . . . . . . . . . . . . . . . . 1 3 14 Launcher 7 | . 9 2 . 11 5 12 9 15 15 15 15 8 13 9 6 6 4 7 5 5 5 5 5 5 5 5 4 4 4 4 . Naked Turns . | . . . . . . . . . . . . . . . . . . . . . . . . . . . . . . . . Heaviest Build 180 | 13 15 15 13 22 41 41 52 48 48 48 43 57 57 68 68 68 87 89 92 94 94 111 109 109 111 111 112 112 118 125 180 Greatest Support 230 | 26 26 26 26 32 56 86 114 114 86 86 86 86 54 54 54 54 129 129 129 129 137 137 155 155 155 155 155 155 230 230 230 Greatest Overweight (x) 1 | . . . . 1 1 1 . . . . . 1 1 1 1 1 . . . . . . . . . . . . . . . Average Overweight (x) . | . . . . . . . . . . . . . 1 1 1 1 . . . . . . . . . . . . . . . Largest Inventory Capacity 10 | 10 10 10 10 10 10 10 10 10 10 10 10 10 10 10 10 10 10 10 10 10 10 10 10 10 10 10 10 10 10 10 10 Average Capacity 10 | 10 10 10 10 10 10 10 10 10 10 10 10 10 10 10 10 10 10 10 10 10 10 10 10 10 10 10 10 10 10 10 10 Most Carried 10 | . 4 9 8 10 10 10 10 10 10 10 10 10 10 10 10 10 10 10 10 10 10 10 10 10 10 10 10 10 10 10 10 Average Carried 9 | . 2 7 8 8 9 8 8 9 10 10 9 9 9 9 10 10 8 9 9 9 10 9 8 10 10 10 10 9 9 9 9 Final Capacity 10 | 10 10 10 10 10 10 10 10 10 10 10 10 10 10 10 10 10 10 10 10 10 10 10 10 10 10 10 10 10 10 10 10 Final Carried 10 | . 3 8 8 10 9 8 9 10 10 10 10 10 9 10 10 10 9 10 10 10 10 8 8 10 10 10 10 10 9 9 10 Class Distribution -------------------- 91% | Mutant Dominant Class ---------------- Mutant | -10/Materials Mutant | -10/Mines Mutant | -10/Exiles Mutant | -9/Mines Mutant | -8/Materials Mutant | -8/Storage Mutant | -7/Factory Mutant | -7/Lower Caves Mutant | -7/Lower Caves Mutant | -7/Data Miner Mutant | -6/Proximity Caves Mutant | -6/Factory Mutant | -6/Lower Caves Mutant | -6/Lower Caves Mutant | -6/Zion Mutant | -5/Proximity Caves Mutant | -5/Factory Mutant | -5/Extension Mutant | -5/Cetus Mutant | -5/Archives Mutant | -5/Hub_04(d) Mutant | -4/Factory Mutant | -4/Upper Caves Mutant | -4/Upper Caves Commander-Mutant | -4/Warlord Mutant | -3/Proximity Caves Mutant | -3/Research Mutant | -3/DSF Mutant | -2/Research Hacker-Assassin | -1/Access Generator-Bomber | -1/Command Resources | -11 -10 -10 -10 -9 -8 -8 -7 -7 -7 -7 -6 -6 -6 -6 -6 -5 -5 -5 -5 -5 -5 -4 -4 -4 -4 -3 -3 -3 -2 -1 -1 ----------- Run | Scr Mat Min Exi Min Mat Sto Fac Low Low Dat Pro Fac Low Low Zio Pro Fac Ext Cet Arc Hub Fac Upp Upp War Pro Res DSF Res Acc Com Matter Collected 28113 | . 1138 219 . 317 833 1834 3168 214 144 . 36 5171 583 87 68 180 2505 1726 1559 93 1940 2572 86 255 762 94 13 70 184 316 1946 Remotely 22482 | . . . . . . 1112 2981 211 144 . 36 5027 333 87 . 158 2505 1318 1559 . 1906 2072 86 255 671 94 13 70 184 316 1344 Salvage Created 51291 | . 1378 199 . 184 1472 3024 3845 80 167 . 71 6690 272 121 . 428 4707 7058 4604 455 5532 6055 . 36 1802 301 124 249 684 430 1323 Parts . | . . . . . . . . . . . . . . . . . . . . . . . . . . . . . . . . Haulers Intercepted 21 | . 2 . . . 3 6 1 . . . . 2 . . . . 2 4 . . 1 . . . . . . . . . . Recyclers Shooed 3 | . . . . . . . . . . . . 3 . . . . . . . . . . . . . . . . . . . Parts Field Recycled . | . . . . . . . . . . . . . . . . . . . . . . . . . . . . . . . . Retrieved Matter . | . . . . . . . . . . . . . . . . . . . . . . . . . . . . . . . . Parts Self-Destructed . | . . . . . . . . . . . . . . . . . . . . . . . . . . . . . . . . Prevented . | . . . . . . . . . . . . . . . . . . . . . . . . . . . . . . . . Kills | -11 -10 -10 -10 -9 -8 -8 -7 -7 -7 -7 -6 -6 -6 -6 -6 -5 -5 -5 -5 -5 -5 -4 -4 -4 -4 -3 -3 -3 -2 -1 -1 ------- Run | Scr Mat Min Exi Min Mat Sto Fac Low Low Dat Pro Fac Low Low Zio Pro Fac Ext Cet Arc Hub Fac Upp Upp War Pro Res DSF Res Acc Com Combat Hostiles Destroyed 1328 | . 25 6 . 15 30 92 142 5 6 . 2 142 8 4 . 16 135 148 133 4 156 155 1 2 42 7 . 6 12 8 26 Guns 48 | . 10 2 . 5 11 12 8 . . . . . . . . . . . . . . . . . . . . . . . . Cannons 80 | . . . . . 4 5 . . . . . 24 . . . . 16 . . . . 1 . . 1 1 . . 4 5 19 AOE 1175 | . 15 4 . 10 15 75 134 5 6 . 2 118 8 4 . 16 117 145 129 . 152 152 1 2 41 6 . 6 6 2 4 Classes Destroyed 28 | . 8 . . 2 5 1 3 1 . . . 1 . 1 . 1 . 1 . . . . . . 1 . . . 2 . 1 Worker 71 | . 5 . . 2 5 6 6 . . . . 22 . . . . 6 14 . . 4 1 . . . . . . . . . Builder 80 | . 2 . . . . 5 10 . . . . 34 . . . . 13 9 . . 3 3 . . . . . . . 1 . Tunneler 7 | . . . . . . . 1 . . . . . . . . . 1 5 . . . . . . . . . . . . . Hauler 21 | . 2 . . . 3 6 1 . . . . 2 . . . . 2 4 . . 1 . . . . . . . . . . Recycler 50 | . 5 1 . . 3 4 . . . . . 20 . . . . 2 13 . . . . . . . . 1 . . 1 . Carrier 14 | . . . . . . . . . . . . . . . . . . 1 3 . 4 5 . . . . . . 1 . . Minesweeper 1 | . . . . . . . . . . . . . . 1 . . . . . . . . . . . . . . . . . Mechanic 69 | . . . . . 1 2 12 . . . . 8 . . . . 11 8 5 . 13 9 . . . . . . . . . Operator 8 | . 2 . . . 1 1 1 . . . . . . . . . 1 . . 1 1 . . . . . . . . . . Watcher 21 | . 3 . . . 4 2 . . . . . 1 . . . . 2 3 1 . 3 . . . . . . . . 1 1 Swarmer 51 | . 6 3 . . . 2 4 4 . . . 5 . . . 7 . . . . 4 . . . 3 . . 5 4 . 4 Cutter 2 | . . . . . 2 . . . . . . . . . . . . . . . . . . . . . . . . . . Saboteur 48 | . . . . . . . . . . . . 4 . . . . 7 8 5 . 12 12 . . . . . . . . . Grunt 578 | . 19 3 . 3 21 54 67 . 4 . . 69 7 3 . 7 61 54 58 . 65 60 . . 18 . . . . 1 4 Brawler 74 | . . . . 1 . 7 11 . . . . 14 1 1 . . 5 10 7 . 7 9 . . 1 . . . . . . Duelist 70 | . . . . . 1 9 10 . . . . 5 . . . . 7 8 6 . 14 9 . . 1 . . . . . . Protector 82 | . . . . . . 9 15 . . . . 5 . . . . 6 15 11 . 8 11 . . 2 . . . . . . Sentry 52 | . . . . . 5 11 2 . 1 . . 11 . . . . 4 3 . 4 2 5 . . . 1 . . 2 1 . Demolisher 1 | . . . . . . . . . . . . . . . . . . . . . . . . . . . . . 1 . . Hunter 183 | . . . . . . . 20 . 1 . 2 18 . . . 2 22 28 21 . 27 23 . . 6 6 . . 4 1 2 Programmer 146 | . . . . . . . 13 . . . . 10 . . . . 22 22 21 . 17 26 . 2 3 . . . . 5 5 Heavy 4 | . . . . . 1 . . . . . . 1 . . . . 1 . . . . . . . . . . 1 . . . Behemoth 7 | . . . . . . . . 1 . . . . . . . . . . . . . . 1 . 5 . . . . . . Cetus Guard 4 | . . . . . . . . . . . . . . . . . . . 4 . . . . . . . . . . . . M Guard 2 | . . . . . . . . . . . . . . . . . . . . . . . . . . . . . . . 2 Enhanced Q-Series 6 | . . . . . . . . . . . . . . . . . . . . . . . . . . . . . . . 6 Combat Programmer 2 | . . . . . . . . . . . . . . . . . . . . . . . . . . . . . . . 2 Striker 1 | . . . . . . . . . . . . . . . . . . . . . . . . . . . . . 1 . . Executioner 3 | . . . . . . . . . . . . . . . . . . . . . . . . . 3 . . . . . . Decomposer 1 | . . . . . . . . . . . . . 1 . . . . . . . . . . . . . . . . . . Assembled 11 | . . . . 11 . . . . . . . . . . . . . . . . . . . . . . . . . . . Savage 1 | . . . . . . . . . . . . . . . . 1 . . . . . . . . . . . . . . . Butcher 2 | . . . . . . . . . . . . . . . . 1 . . . . . . . . 1 . . . . . . Fireman 1 | . . . . . . . . . . . . . . . . 1 . . . . . . . . . . . . . . . Best Kill Streak 56 | . 4 3 . 4 7 20 29 4 4 . 2 18 4 4 . 4 23 56 34 2 42 27 1 1 13 3 1 5 7 5 7 Combat Bots Only 44 | . 3 3 . 4 4 19 24 4 4 . 2 12 4 3 . 4 20 44 30 2 37 25 1 1 13 3 . 5 6 3 6 Max Kills in Single Turn 8 | . 2 2 . 2 5 6 8 2 2 . 1 5 4 1 . 3 5 7 6 1 6 7 1 1 4 1 1 4 3 1 4 Gunslinging 1 | . 1 . . . . . . . . . . . . . . . . . . . . . . . . . . . . . . Exploded 7 | . 2 2 . 2 3 6 7 2 2 . 1 5 4 1 . 2 5 5 6 . 6 7 1 1 4 1 . 4 2 1 3 Melee . | . . . . . . . . . . . . . . . . . . . . . . . . . . . . . . . . Uniques/NPCs Destroyed 1 | . . . . . . . . . . . . . . . . . . . . . . . . . . . . . . . 1 MAIN.C Shell (-1/Command) Combat | -11 -10 -10 -10 -9 -8 -8 -7 -7 -7 -7 -6 -6 -6 -6 -6 -5 -5 -5 -5 -5 -5 -4 -4 -4 -4 -3 -3 -3 -2 -1 -1 -------- Run | Scr Mat Min Exi Min Mat Sto Fac Low Low Dat Pro Fac Low Low Zio Pro Fac Ext Cet Arc Hub Fac Upp Upp War Pro Res DSF Res Acc Com Damage Taken 22329 | . 388 105 . 301 1207 1008 1499 33 54 . 29 1168 62 462 . 234 1441 247 919 164 954 981 46 92 407 223 . 53 345 415 9492 Core 1796 | . 50 30 . 70 157 60 205 . . . . 42 9 70 . 15 15 10 31 14 53 58 . 14 29 17 . 10 22 23 792 Absorbed by Shields 12604 | . . . . . . 168 1162 33 60 . 30 904 68 126 . 185 595 201 756 117 985 829 47 95 417 233 . 55 355 430 4753 Reduced by Siege Mode 1430 | . . . . . . . . . . . . . . . . . 103 8 67 17 49 53 . . 10 . . . 16 15 1092 Redirected to Shielding 104 | . . . . . . . 104 . . . . . . . . . . . . . . . . . . . . . . . . Regen/Repaired (Parts) 129 | . . . . . . . . . . . . . . . . . . . . . . . . . 129 . . . . . . Core Remaining (%) 77 | 100 . . . 40 . 60 . . . . 70 . . . . 84 . . . . 87 . . . . 89 . 99 98 . 49 Volleys Fired 2027 | . 108 14 . 28 82 125 164 6 6 1 2 313 9 7 . 18 311 140 151 16 142 144 7 6 53 11 1 5 40 22 95 Largest 4 | . 2 2 . 2 2 2 2 2 2 1 2 2 2 2 . 1 2 1 1 1 1 1 1 1 1 1 1 1 1 1 4 Hottest 268 | . 66 66 . 66 131 131 131 78 78 39 78 86 86 86 . 43 124 81 81 88 88 88 94 49 94 94 94 49 94 60 268 Shots Fired 2586 | . 168 26 . 50 143 192 258 9 9 1 4 384 13 12 . 18 311 138 153 15 139 143 7 6 53 11 1 5 40 23 254 Gun 397 | . 125 18 . 31 71 75 77 . . . . . . . . . . . . . . . . . . . . . . . . Cannon 792 | . . . . . 41 29 . . . . . 164 . 1 . . 138 29 27 15 18 20 1 . 7 2 1 . 33 17 249 Launcher 1397 | . 43 8 . 19 31 88 181 9 9 1 4 220 13 11 . 18 173 109 126 . 121 123 6 6 46 9 . 5 7 6 5 Special . | . . . . . . . . . . . . . . . . . . . . . . . . . . . . . . . . Kinetic 761 | . 125 18 . 31 55 29 . . . . . 164 . . . . 77 . . . . . . . . . . . 18 17 227 Thermal 209 | . . . . . 57 75 77 . . . . . . . . . . . . . . . . . . . . . . . . Explosive 1397 | . 43 8 . 19 31 88 181 9 9 1 4 220 13 11 . 18 173 109 126 . 121 123 6 6 46 9 . 5 7 6 5 Electromagnetic 219 | . . . . . . . . . . . . . . 1 . . 61 29 27 15 18 20 1 . 7 2 1 . 15 . 22 Robot Hit Streak 40 | . 21 11 . 4 9 21 40 6 5 . . 34 30 10 . 15 26 18 33 18 23 16 21 . 5 10 4 6 10 12 36 Robot Miss Streak 7 | . 4 2 . 5 7 7 7 1 1 . . 5 2 . . 1 4 1 2 . 1 3 . . 1 1 . . 3 2 2 Penetration Max 1 | . . . . . 1 1 . . . . . . . . . . . . . . . . . . . . . . . . . Secondary Targets 2 | . 2 . . . . . . . . . . . . . . . . . . . . . . . . . . . . . . Max Gunslinging Chain 1 | . 1 . . . . . . . . . . . . . . . . . . . . . . . . . . . . . . Shots Hit Robots 1289 | . 71 12 . 24 79 117 113 6 5 . . 261 7 9 . 11 171 27 19 15 40 36 5 . 8 8 1 2 26 20 196 Core Hits 3214 | . 66 12 . 37 115 265 414 10 11 1 5 453 19 10 . 39 374 303 228 7 276 312 5 4 84 15 1 16 25 21 86 Critical Kills . | . . . . . . . . . . . . . . . . . . . . . . . . . . . . . . . . Critical Parts Destroyed 1 | . . . . . . . . . . . . . . . . . . . . . . . . . . . . . . 1 . Critical Strikes 23 | . . . . . 1 3 6 . . . . 4 . . . . . 1 . . 2 . . . . . . . . 1 5 Burn 7 | . . . . . 1 . 6 . . . . . . . . . . . . . . . . . . . . . . . . Blast 11 | . . . . . . 3 . . . . . 4 . . . . . . . . . . . . . . . . . . 4 Corrupt 4 | . . . . . . . . . . . . . . . . . . 1 . . 2 . . . . . . . . . 1 Smash 1 | . . . . . . . . . . . . . . . . . . . . . . . . . . . . . . 1 . Melee Attacks 11 | . . . . . . . . . . . . . . . . . . . . . . . . . . . . . . 11 . Impact 11 | . . . . . . . . . . . . . . . . . . . . . . . . . . . . . . 11 . Slashing . | . . . . . . . . . . . . . . . . . . . . . . . . . . . . . . . . Piercing . | . . . . . . . . . . . . . . . . . . . . . . . . . . . . . . . . Sneak Attacks . | . . . . . . . . . . . . . . . . . . . . . . . . . . . . . . . . Combat Hostiles . | . . . . . . . . . . . . . . . . . . . . . . . . . . . . . . . . Follow-up Attacks . | . . . . . . . . . . . . . . . . . . . . . . . . . . . . . . . . Damage Inflicted 276108 | . 2086 518 . 1212 3855 12287 23920 797 806 2 263 30495 1764 809 . 2337 26910 36193 30760 492 34703 36229 450 342 11419 1533 82 1573 2453 2130 9688 Guns 4763 | . 1094 171 . 246 910 1081 1261 . . . . . . . . . . . . . . . . . . . . . . . . Cannons 26316 | . . . . . 650 538 . . . . . 7309 . . . . 3712 913 625 492 498 288 . . 148 89 41 . 1339 978 8696 Explosions 244442 | . 981 326 . 928 2245 10633 22649 797 806 2 263 23152 1714 809 . 2323 23167 35280 30135 . 34150 35936 450 342 11271 1444 . 1573 1107 981 978 Melee 171 | . . . . . . . . . . . . . . . . . . . . . . . . . . . . . . 171 . Ramming 416 | . 11 21 . 38 50 35 10 . . . . 34 50 . . 14 31 . . . 55 5 . . . . 41 . 7 . 14 Kinetic 23197 | . 1094 171 . 246 838 538 . . . . . 7309 . . . . 2729 . . . . . . . . . . . 940 978 8354 Thermal 5475 | . . . . . 724 1081 1835 . . . . 131 . . . . 1020 . 172 . . 512 . . . . . . . . . Explosive 241646 | . 981 326 . 928 2243 10633 21814 797 806 2 263 23021 1714 809 . 2323 22093 35210 29963 . 34150 35424 450 342 11271 1444 . 1573 1107 981 978 Electromagnetic 5203 | . . . . . . . 261 . . . . . . . . . 1037 983 625 492 498 288 . . 148 89 41 . 399 . 342 Impact 171 | . . . . . . . . . . . . . . . . . . . . . . . . . . . . . . 171 . Slashing . | . . . . . . . . . . . . . . . . . . . . . . . . . . . . . . . . Piercing . | . . . . . . . . . . . . . . . . . . . . . . . . . . . . . . . . Highest Corruption 16 | . . . . 2 5 5 8 8 8 8 8 . . 2 2 . 8 5 7 7 10 2 2 5 5 . . . . 6 16 Average Corruption 4 | . . . . 2 5 5 4 8 8 8 8 . . 2 2 . 2 3 5 7 8 1 2 4 5 . . . . 3 4 Corruption Purged 33 | . . . . . . . . . . . . . . . . . 5 . . . . . . . . . . . . . 28 Corruption Blocked 18 | . . . . . . . . . . . . . . . . . . . . . . . . . . . . . 18 . . Effects 518 | . . . . 5 23 68 63 30 24 4 5 . . 9 3 . 33 36 63 15 85 3 8 3 1 . . . . 11 26 Message Errors 143 | . . . . 4 7 14 15 8 10 1 3 . . 5 . . 12 9 19 6 19 . 3 . . . . . . 2 6 Matter Fused 126 | . . . . . 4 25 11 10 3 1 1 . . 2 2 . 8 10 14 3 22 . 1 2 . . . . . 2 5 Heat Flow Errors 62 | . . . . . 3 9 7 1 5 1 1 . . . . . 3 7 7 2 9 1 3 . . . . . . . 3 Energy Discharges 66 | . . . . . 3 9 10 5 4 1 . . . . . . 1 4 6 2 15 1 1 . 1 . . . . 1 2 Parts Rejected 5 | . . . . . . 1 1 . . . . . . . . . . . . . . . . . . . . . . 1 2 Data Loss (minor) 52 | . . . . . 3 5 8 3 1 . . . . 1 1 . 7 . 7 . 8 . . 1 . . . . . 3 4 Data Loss (major) 17 | . . . . . . 3 5 1 . . . . . . . . 1 1 2 . 2 . . . . . . . . 1 1 Misfires 15 | . . . . 1 1 2 1 . . . . . . 1 . . . 1 4 . 3 . . . . . . . . 1 . Alerts 9 | . . . . . 2 . . 1 . . . . . . . . . 1 2 1 1 . . . . . . . . . 1 Weapon Failures 23 | . . . . . . . 5 1 1 . . . . . . . 1 3 2 1 6 1 . . . . . . . . 2 Overload Shots . | . . . . . . . . . . . . . . . . . . . . . . . . . . . . . . . . Overflow Damage 11835 | . . . . 45 66 181 501 14 42 . . 886 164 19 . 35 646 2693 1766 . 1976 1996 . 13 404 13 . 96 36 115 128 Projectiles 675 | . . . . . 12 7 . . . . . 269 . . . . 99 95 6 . 2 38 . . . . . . . 49 98 Explosions 11078 | . . . . 45 49 174 501 14 42 . . 617 153 19 . 35 547 2598 1760 . 1974 1958 . 13 404 13 . 96 36 . 30 Melee 82 | . . . . . 5 . . . . . . . 11 . . . . . . . . . . . . . . . . 66 . Knockbacks 78 | . . 1 . 1 5 3 . . . . . 12 . . . . 9 . . . 1 . . . . . . . 4 4 38 Impact 5 | . . 1 . 1 . . . . . . . . . . . . . . . . 1 . . . . . . . . 1 1 Kinetic 69 | . . . . . 5 3 . . . . . 11 . . . . 7 . . . . . . . . . . . 4 3 36 Secondary 4 | . . . . . . . . . . . . 1 . . . . 2 . . . . . . . . . . . . . 1 Self-Inflicted Damage 2177 | . 101 63 . 128 . 28 158 52 15 . . 66 55 416 . 100 12 . 467 . 153 . . 86 97 88 . . . 92 . Shots 41 | . 3 2 . 4 . 1 4 1 1 . . 2 1 6 . 3 1 . 6 . 2 . . 1 1 1 . . . 1 . Rammed 47 | . . . . . 4 7 4 . . . . 1 14 . . 3 3 . . . 3 1 . . . . 4 . 1 . 2 Targets Rammed 77 | . 5 4 . 9 10 7 5 . . . . 3 16 . . 3 3 . . . 4 1 . . . . 4 . 1 . 2 Kicked 24 | . 5 4 . 9 6 . . . . . . . . . . . . . . . . . . . . . . . . . . Crushed 6 | . . . . . . . 1 . . . . 2 2 . . . . . . . 1 . . . . . . . . . . Highest Temperature 359 | . 18 21 . 52 359 326 336 279 254 282 254 22 . . . . 188 174 168 174 179 36 194 . . . . . . . 355 Average Temperature 69 | . 5 10 . 13 85 75 72 86 71 148 101 12 . . . . 88 86 76 102 74 36 129 . . . . . . . 59 Received Heat Transfer 2598 | . 93 24 . 70 297 415 306 . 10 . . 151 25 21 . 18 43 21 16 12 106 105 4 . 20 8 . . 16 8 809 Effects 3 | . . . . . 1 . 2 . . . . . . . . . . . . . . . . . . . . . . . . Energy Bleed 2 | . . . . . 1 . 1 . . . . . . . . . . . . . . . . . . . . . . . . Interference 1 | . . . . . . . 1 . . . . . . . . . . . . . . . . . . . . . . . . Siege Activations 52 | . . . . . . . . . . . . . . . . . 9 7 11 3 4 6 . . 1 . . . 1 2 8 Total Turns 6524 | . . . . . . . . . . . . . . . . . 709 1079 1844 64 1530 746 . . 157 . . . 16 20 359 Longest Duration 1390 | . . . . . . . . . . . . . . . . . 302 518 688 29 1390 399 . . 157 . . . 16 14 131 Robots Corrupted 28 | . . . . . . . . . . . . . . . . . 4 5 4 4 4 2 . . . . . . 2 . 3 Combat Hostiles 24 | . . . . . . . . . . . . . . . . . 2 3 4 4 4 2 . . . . . . 2 . 3 Parts Fried . | . . . . . . . . . . . . . . . . . . . . . . . . . . . . . . . . Impact Corruptions 6 | . . . . . 1 . . . . . . . 4 . . . . . . . . . . . . . . . . 1 . Robots Melted . | . . . . . . . . . . . . . . . . . . . . . . . . . . . . . . . . Combat Hostiles . | . . . . . . . . . . . . . . . . . . . . . . . . . . . . . . . . Parts Melted 2 | . . . . . . . 2 . . . . . . . . . . . . . . . . . . . . . . . . Heat Transferred 5481 | . . . . . 790 1218 2373 . . . . 100 . . . . 600 . 100 . . 300 . . . . . . . . . Parts Sabotaged 3 | . . . . . . . . . . . . 3 . . . . . . . . . . . . . . . . . . . Parts Stolen . | . . . . . . . . . . . . . . . . . . . . . . . . . . . . . . . . Parts Stripped . | . . . . . . . . . . . . . . . . . . . . . . . . . . . . . . . . Power Chain Reactions 3 | . . . . . . . . . . . . . . . . . . 1 2 . . . . . . . . . . . . Missiles Intercepted 11 | . . . . . . . . . . . . . . . . . . . . . . . . . . . . . . . 11 Alert | -11 -10 -10 -10 -9 -8 -8 -7 -7 -7 -7 -6 -6 -6 -6 -6 -5 -5 -5 -5 -5 -5 -4 -4 -4 -4 -3 -3 -3 -2 -1 -1 ------- Run | Scr Mat Min Exi Min Mat Sto Fac Low Low Dat Pro Fac Low Low Zio Pro Fac Ext Cet Arc Hub Fac Upp Upp War Pro Res DSF Res Acc Com Peak Influence 7219 | . 1402 899 . 352 867 2164 4640 . . . . 4274 . . . . 4359 5731 5875 2440 5135 7219 . . . . 23 338 585 444 772 Initial 3208 | . . 546 . . 83 203 1100 . . . . 31 . . . . 64 2135 3208 2350 854 2515 . . . . . 21 189 350 264 Average 2024 | . 724 781 . 155 498 1249 1888 . . . . 1735 . . . . 2123 3688 3959 2420 3150 5321 . . . . 10 112 351 292 289 Maximum Alert Level 5 | . 4 3 . 1 3 5 5 . . . . 5 . . . . 5 5 5 5 5 5 . . . . . 1 2 2 3 Low Security (%) 8 | 100 10 . . 65 2 . . . . . . 3 . . . . 11 . . . . . . . . . 100 85 5 30 59 Level 1 6 | . 19 . . 34 18 5 . . . . . . . . . . 2 . . . . . . . . . . 14 67 24 15 Level 2 10 | . 21 28 . . 68 11 . . . . . 7 . . . . . . . . . . . . . . . . 26 44 22 Level 3 10 | . 20 71 . . 11 10 . . . . . 24 . . . . 14 . . . 7 . . . . . . . . . 3 Level 4 19 | . 28 . . . . 54 60 . . . . 21 . . . . 19 . . . 13 . . . . . . . . . . Level 5 15 | . . . . . . 3 10 . . . . 29 . . . . 4 23 60 100 11 13 . . . . . . . . . High Security 28 | . . . . . . 14 28 . . . . 12 . . . . 47 76 39 . 67 86 . . . . . . . . . Max Security . | . . . . . . . . . . . . . . . . . . . . . . . . . . . . . . . . Sterilizations 8 | . . . . . . 1 1 . . . . 1 . . . . 1 1 1 . 1 1 . . . . . . . . . Squads Dispatched 290 | . 8 1 . 1 7 18 38 . . . . 42 . . . . 33 35 22 . 38 38 . . . . . 2 . 6 1 Investigation 14 | . 7 1 . 1 1 . 2 . . . . 1 . . . . . . . . . 1 . . . . . . . . . Extermination 16 | . . . . . . . 4 . . . . 7 . . . . 1 . . . 1 . . . . . . . . 2 1 Reinforcement 38 | . 1 . . . 5 3 4 . . . . 11 . . . . 5 2 . . 3 1 . . . . . 2 . 1 . Assault 209 | . . . . . 1 12 28 . . . . 19 . . . . 26 33 22 . 34 34 . . . . . . . . . Garrison 13 | . . . . . . 3 . . . . . 4 . . . . 1 . . . . 2 . . . . . . . 3 . Intercept . | . . . . . . . . . . . . . . . . . . . . . . . . . . . . . . . . Searches Triggered . | . . . . . . . . . . . . . . . . . . . . . . . . . . . . . . . . Construction Impeded 23 | . . . . . 3 2 3 . . . . 8 . . . . 2 2 . . 2 1 . . . . . . . . . Haulers Reinforced 2 | . . . . . . . . . . . . . . . . . 1 . . . . . . . . . . . . 1 . Active Scanning Responses . | . . . . . . . . . . . . . . . . . . . . . . . . . . . . . . . . Cargo Convoy Interrupts 1 | . . . . . . . . . . . . 1 . . . . . . . . . . . . . . . . . . . Stealth | -11 -10 -10 -10 -9 -8 -8 -7 -7 -7 -7 -6 -6 -6 -6 -6 -5 -5 -5 -5 -5 -5 -4 -4 -4 -4 -3 -3 -3 -2 -1 -1 --------- Run | Scr Mat Min Exi Min Mat Sto Fac Low Low Dat Pro Fac Low Low Zio Pro Fac Ext Cet Arc Hub Fac Upp Upp War Pro Res DSF Res Acc Com Distress Signals 35 | . 1 . . . 1 2 1 . . . . 2 . . . . . 1 . . 3 . . . . . . . 8 1 15 Communications Jammed . | . . . . . . . . . . . . . . . . . . . . . . . . . . . . . . . . Distress Signals . | . . . . . . . . . . . . . . . . . . . . . . . . . . . . . . . . Times Spotted 1546 | . 27 9 . 18 31 104 132 6 5 . 1 161 7 4 . 17 177 195 153 4 205 132 1 2 48 8 . 6 11 11 71 Peak Tracking Total 20 | . 4 3 . 3 4 11 17 4 4 . 1 13 4 3 . 4 15 15 18 2 17 20 1 1 10 5 . 5 4 6 9 Tactical Retreats 11 | . 1 . . . 1 1 1 . . . . 3 . . . . 2 . . . 1 . . . . . . . . . 1 Traps | -11 -10 -10 -10 -9 -8 -8 -7 -7 -7 -7 -6 -6 -6 -6 -6 -5 -5 -5 -5 -5 -5 -4 -4 -4 -4 -3 -3 -3 -2 -1 -1 ------- Run | Scr Mat Min Exi Min Mat Sto Fac Low Low Dat Pro Fac Low Low Zio Pro Fac Ext Cet Arc Hub Fac Upp Upp War Pro Res DSF Res Acc Com Traps Triggered 11 | . 2 . . . . . 3 . . . . . . . . . . . . . 1 2 . . . . 1 . . . 2 Indirectly 1 | . . . . . . . 1 . . . . . . . . . . . . . . . . . . . . . . . . Trap Hack Attempts . | . . . . . . . . . . . . . . . . . . . . . . . . . . . . . . . . Triggered . | . . . . . . . . . . . . . . . . . . . . . . . . . . . . . . . . Disarmed . | . . . . . . . . . . . . . . . . . . . . . . . . . . . . . . . . Reprogrammed . | . . . . . . . . . . . . . . . . . . . . . . . . . . . . . . . . Reused . | . . . . . . . . . . . . . . . . . . . . . . . . . . . . . . . . Traps Extracted . | . . . . . . . . . . . . . . . . . . . . . . . . . . . . . . . . Installed . | . . . . . . . . . . . . . . . . . . . . . . . . . . . . . . . . Triggered 19 | . . . . . . . . 1 1 . . 5 . . . . . . . . . . . . 12 . . . . . . Machines | -11 -10 -10 -10 -9 -8 -8 -7 -7 -7 -7 -6 -6 -6 -6 -6 -5 -5 -5 -5 -5 -5 -4 -4 -4 -4 -3 -3 -3 -2 -1 -1 ---------- Run | Scr Mat Min Exi Min Mat Sto Fac Low Low Dat Pro Fac Low Low Zio Pro Fac Ext Cet Arc Hub Fac Upp Upp War Pro Res DSF Res Acc Com Machines Disabled 178 | . 21 3 . 2 12 10 25 . . 1 . 35 . . . . 24 2 1 . 13 18 1 . 2 . . 1 4 1 2 Max in Single Turn 8 | . 1 1 . 2 4 2 7 . . 1 . 6 . . . . 4 2 1 . 8 6 1 . 2 . . 1 1 1 1 Garrison Access 4 | . . . . . . . . . . . . . . . . . 1 . . . . 2 . . . . . . . 1 . Network Hub 3 | . . . . . . . . . . . . . . . . . . . . . 3 . . . . . . . . . . Machines Sabotaged 2 | . 2 . . . . . . . . . . . . . . . . . . . . . . . . . . . . . . Overloaded Fab Kills . | . . . . . . . . . . . . . . . . . . . . . . . . . . . . . . . . Hacking | -11 -10 -10 -10 -9 -8 -8 -7 -7 -7 -7 -6 -6 -6 -6 -6 -5 -5 -5 -5 -5 -5 -4 -4 -4 -4 -3 -3 -3 -2 -1 -1 --------- Run | Scr Mat Min Exi Min Mat Sto Fac Low Low Dat Pro Fac Low Low Zio Pro Fac Ext Cet Arc Hub Fac Upp Upp War Pro Res DSF Res Acc Com Machines Accessed 44 | . 5 1 1 1 4 6 4 . . 3 . 3 . . . . 1 1 . . 2 1 . . . . 2 . 1 7 1 Terminals 39 | . 5 1 . 1 4 6 4 . . . . 3 . . . . 1 1 . . 2 1 . . . . 2 . 1 6 1 Fabricators . | . . . . . . . . . . . . . . . . . . . . . . . . . . . . . . . . Repair Stations . | . . . . . . . . . . . . . . . . . . . . . . . . . . . . . . . . Recycling Units . | . . . . . . . . . . . . . . . . . . . . . . . . . . . . . . . . Scanalyzers . | . . . . . . . . . . . . . . . . . . . . . . . . . . . . . . . . Garrison Access 1 | . . . . . . . . . . . . . . . . . . . . . . . . . . . . . . 1 . Total Hacks 124 | . 7 1 1 1 12 16 9 . . 26 . 5 . . . . 3 1 . . 6 2 . . . . 4 . 7 22 1 Successful 73 | . 6 1 1 1 8 7 2 . . 26 . 2 . . . . 2 1 . . 2 . . . . . 2 . 2 9 1 Failed 51 | . 1 . . . 4 9 7 . . . . 3 . . . . 1 . . . 4 2 . . . . 2 . 5 13 . Catastrophic 12 | . . . . . 1 . 3 . . . . 1 . . . . . . . . 1 2 . . . . . . 1 3 . Database Lockouts . | . . . . . . . . . . . . . . . . . . . . . . . . . . . . . . . . Manual 53 | . 7 1 1 1 8 14 5 . . . . 2 . . . . . . . . 3 . . . 1 . 2 . 3 5 . Terminals 96 | . 7 1 . 1 12 16 9 . . . . 5 . . . . 3 1 . . 6 2 . . . . 4 . 7 21 1 Fabricators . | . . . . . . . . . . . . . . . . . . . . . . . . . . . . . . . . Repair Stations . | . . . . . . . . . . . . . . . . . . . . . . . . . . . . . . . . Recycling Units . | . . . . . . . . . . . . . . . . . . . . . . . . . . . . . . . . Scanalyzers . | . . . . . . . . . . . . . . . . . . . . . . . . . . . . . . . . Garrison Access 1 | . . . . . . . . . . . . . . . . . . . . . . . . . . . . . . 1 . Terminal Hacks 55 | . . . 1 . 5 4 2 . . 26 . 1 . . . . 2 1 . . 2 . . . . . 2 . . 8 1 Record 6 | . . . . . . . . . . 6 . . . . . . . . . . . . . . . . . . . . . Part Schematic 11 | . . . . . . . . . . 11 . . . . . . . . . . . . . . . . . . . . . Robot Schematic 6 | . . . . . . . . . . 6 . . . . . . . . . . . . . . . . . . . . . Prototype ID Bank 3 | . . . . . . . . . . 3 . . . . . . . . . . . . . . . . . . . . . Open Door 6 | . . . . . . 1 . . . . . . . . . . . 1 . . . . . . . . . . . 3 1 Open DSF 1 | . . . . . . . . . . . . . . . . . . . . . . . . . . . 1 . . . . Level Access Points 1 | . . . . . . . . . . . . . . . . . . . . . . . . . . . 1 . . . . Branch Access Points 4 | . . . . . . . 1 . . . . 1 . . . . 1 . . . . . . . . . . . . 1 . Emergency Access Points 1 | . . . . . . . 1 . . . . . . . . . . . . . . . . . . . . . . . . Alert Level 6 | . . . . . 2 1 . . . . . . . . . . 1 . . . . . . . . . . . . 2 . Unreport Threat 7 | . . . . . 3 2 . . . . . . . . . . . . . . . . . . . . . . . 2 . Zone Layout 2 | . . . . . . . . . . . . . . . . . . . . . 2 . . . . . . . . . . EX-Prototype ID Bank 1 | . . . 1 . . . . . . . . . . . . . . . . . . . . . . . . . . . . Fabricator Hacks . | . . . . . . . . . . . . . . . . . . . . . . . . . . . . . . . . Repair Station Hacks . | . . . . . . . . . . . . . . . . . . . . . . . . . . . . . . . . Recycling Unit Hacks . | . . . . . . . . . . . . . . . . . . . . . . . . . . . . . . . . Scanalyzer . | . . . . . . . . . . . . . . . . . . . . . . . . . . . . . . . . Garrison Access Hacks 1 | . . . . . . . . . . . . . . . . . . . . . . . . . . . . . . 1 . Seal Access 1 | . . . . . . . . . . . . . . . . . . . . . . . . . . . . . . 1 . Unauthorized Hacks 17 | . 6 1 . 1 3 3 . . . . . 1 . . . . . . . . . . . . . . . . 2 . . Terminals 17 | . 6 1 . 1 3 3 . . . . . 1 . . . . . . . . . . . . . . . . 2 . . Botnet 8 | . 1 . . . 2 3 . . . . . 1 . . . . . . . . . . . . . . . . 1 . . Operators 1 | . . . . . . . . . . . . . . . . . . . . . . . . . . . . . 1 . . Sabotage 6 | . 4 . . 1 1 . . . . . . . . . . . . . . . . . . . . . . . . . . Search 2 | . 1 1 . . . . . . . . . . . . . . . . . . . . . . . . . . . . . Fabricators . | . . . . . . . . . . . . . . . . . . . . . . . . . . . . . . . . Repair Stations . | . . . . . . . . . . . . . . . . . . . . . . . . . . . . . . . . Recycling Units . | . . . . . . . . . . . . . . . . . . . . . . . . . . . . . . . . Scanalyzers . | . . . . . . . . . . . . . . . . . . . . . . . . . . . . . . . . Garrison Access . | . . . . . . . . . . . . . . . . . . . . . . . . . . . . . . . . Data Cores Recovered 2 | . 1 . . . . . 1 . . . . . . . . . . . . . . . . . . . . . . . . Used 1 | . . . . . . . 1 . . . . . . . . . . . . . . . . . . . . . . . . Hacking Detections 26 | . 1 . . . 3 5 4 . . . . 3 . . . . 1 . . . 2 1 . . . . 1 . 1 3 1 Full Trace Events 4 | . . . . . . . 2 . . . . 1 . . . . . . . . . 1 . . . . . . . . . Feedback Events 1 | . . . . . . . 1 . . . . . . . . . . . . . . . . . . . . . . . . Corruption 1 | . . . . . . . 1 . . . . . . . . . . . . . . . . . . . . . . . . Feedback Blocked . | . . . . . . . . . . . . . . . . . . . . . . . . . . . . . . . . Robot Schematics Acquired 6 | . . . . . . . . . . 6 . . . . . . . . . . . . . . . . . . . . . Robots Built . | . . . . . . . . . . . . . . . . . . . . . . . . . . . . . . . . Authchips . | . . . . . . . . . . . . . . . . . . . . . . . . . . . . . . . . Time . | . . . . . . . . . . . . . . . . . . . . . . . . . . . . . . . . Total Robot Build Rating . | . . . . . . . . . . . . . . . . . . . . . . . . . . . . . . . . Part Schematics Acquired 11 | . . . . . . . . . . 11 . . . . . . . . . . . . . . . . . . . . . Parts Built . | . . . . . . . . . . . . . . . . . . . . . . . . . . . . . . . . Authchips . | . . . . . . . . . . . . . . . . . . . . . . . . . . . . . . . . Time . | . . . . . . . . . . . . . . . . . . . . . . . . . . . . . . . . Total Part Build Rating . | . . . . . . . . . . . . . . . . . . . . . . . . . . . . . . . . Parts Repaired . | . . . . . . . . . . . . . . . . . . . . . . . . . . . . . . . . Time . | . . . . . . . . . . . . . . . . . . . . . . . . . . . . . . . . Parts Recycled . | . . . . . . . . . . . . . . . . . . . . . . . . . . . . . . . . Recycled Matter . | . . . . . . . . . . . . . . . . . . . . . . . . . . . . . . . . Retrieved Matter . | . . . . . . . . . . . . . . . . . . . . . . . . . . . . . . . . Retrieved Components . | . . . . . . . . . . . . . . . . . . . . . . . . . . . . . . . . Parts Scanalyzed . | . . . . . . . . . . . . . . . . . . . . . . . . . . . . . . . . Part Schematics Acquired . | . . . . . . . . . . . . . . . . . . . . . . . . . . . . . . . . Parts Damaged . | . . . . . . . . . . . . . . . . . . . . . . . . . . . . . . . . Bothacking | -11 -10 -10 -10 -9 -8 -8 -7 -7 -7 -7 -6 -6 -6 -6 -6 -5 -5 -5 -5 -5 -5 -4 -4 -4 -4 -3 -3 -3 -2 -1 -1 ------------ Run | Scr Mat Min Exi Min Mat Sto Fac Low Low Dat Pro Fac Low Low Zio Pro Fac Ext Cet Arc Hub Fac Upp Upp War Pro Res DSF Res Acc Com Used RIF Installer . | . . . . . . . . . . . . . . . . . . . . . . . . . . . . . . . . Robots Hacked . | . . . . . . . . . . . . . . . . . . . . . . . . . . . . . . . . Non-combat . | . . . . . . . . . . . . . . . . . . . . . . . . . . . . . . . . Combat . | . . . . . . . . . . . . . . . . . . . . . . . . . . . . . . . . Robot Hacks Applied . | . . . . . . . . . . . . . . . . . . . . . . . . . . . . . . . . Relay Couplers Released 4 | . . . . . . . . . . . . . . . . . 2 . . . . 2 . . . . . . . . . Machine Destruction 4 | . . . . . . . . . . . . . . . . . 2 . . . . 2 . . . . . . . . . Fabnet Peak Effective % . | . . . . . . . . . . . . . . . . . . . . . . . . . . . . . . . . Robots Rewired 4 | . . . . . . . . . . . . . . . . . . . . . . . . . 4 . . . . . . Allies Hacked . | . . . . . . . . . . . . . . . . . . . . . . . . . . . . . . . . Hacks Repelled . | . . . . . . . . . . . . . . . . . . . . . . . . . . . . . . . . Allies | -11 -10 -10 -10 -9 -8 -8 -7 -7 -7 -7 -6 -6 -6 -6 -6 -5 -5 -5 -5 -5 -5 -4 -4 -4 -4 -3 -3 -3 -2 -1 -1 -------- Run | Scr Mat Min Exi Min Mat Sto Fac Low Low Dat Pro Fac Low Low Zio Pro Fac Ext Cet Arc Hub Fac Upp Upp War Pro Res DSF Res Acc Com Total Allies 14 | . . . . 1 . . 3 . . . . . . . 5 . . 1 . . . . . . 4 . . . . . . Largest Group 5 | . . . . 1 . . 3 3 . . . . . . 5 3 . 1 . . . . . . 4 . . . . . . Highest-Rated Group 245 | . . . . 31 . . 93 93 . . . . . . 132 84 . 159 . . . . . . 245 . . . . . . Highest-Rated Ally 159 | . . . . 31 . . 31 31 . . . . . . 31 31 . 159 . . . . . . 68 . . . . . . Total Orders 5 | . . . . . . . . . . . . . . . . . . . . . . 4 . . 1 . . . . . . STAY 1 | . . . . . . . . . . . . . . . . . . . . . . . . . 1 . . . . . . EXPLORE 2 | . . . . . . . . . . . . . . . . . . . . . . 2 . . . . . . . . . RETURN 2 | . . . . . . . . . . . . . . . . . . . . . . 2 . . . . . . . . . Ally Attacks 97 | . . . . 11 . . 25 10 . . . . . . . 13 . 38 . . . . . . . . . . . . . Total Damage 1865 | . . . . 106 . . 403 198 . . . . . . . 292 . 866 . . . . . . . . . . . . . Kills 14 | . . . . 2 . . 2 3 . . . . . . . 3 . 4 . . . . . . . . . . . . . Allies Corrupted . | . . . . . . . . . . . . . . . . . . . . . . . . . . . . . . . . Allies Melted 5 | . . . . . . . . . . . . . . . . . . . . . . . . . . . . . . . 5 Intel | -11 -10 -10 -10 -9 -8 -8 -7 -7 -7 -7 -6 -6 -6 -6 -6 -5 -5 -5 -5 -5 -5 -4 -4 -4 -4 -3 -3 -3 -2 -1 -1 ------- Run | Scr Mat Min Exi Min Mat Sto Fac Low Low Dat Pro Fac Low Low Zio Pro Fac Ext Cet Arc Hub Fac Upp Upp War Pro Res DSF Res Acc Com Robot Analysis Total . | . . . . . . . . . . . . . . . . . . . . . . . . . . . . . . . . Derelict Logs Recovered . | . . . . . . . . . . . . . . . . . . . . . . . . . . . . . . . . Drone Launches 2 | . . . . . . . . . . . . . . . . . . . . . . 2 . . . . . . . . . Drone Recoveries 2 | . . . . . . . . . . . . . . . . . . . . . . 2 . . . . . . . . . Exploration | -11 -10 -10 -10 -9 -8 -8 -7 -7 -7 -7 -6 -6 -6 -6 -6 -5 -5 -5 -5 -5 -5 -4 -4 -4 -4 -3 -3 -3 -2 -1 -1 ------------- Run | Scr Mat Min Exi Min Mat Sto Fac Low Low Dat Pro Fac Low Low Zio Pro Fac Ext Cet Arc Hub Fac Upp Upp War Pro Res DSF Res Acc Com Turns Passed 40904 | 1 1990 770 254 712 1519 2995 3062 876 648 129 240 4934 1504 897 1863 1096 2592 1804 2335 378 2594 1593 422 237 1492 802 181 147 576 710 1551 Spaces Moved 13292 | 1 1244 548 212 459 620 733 936 539 397 80 142 885 574 283 746 385 663 306 157 69 443 369 243 136 635 424 101 80 268 283 331 Core 70 | . . . . . . . . . . . . . . . . . . . . . . . . . . . . . . . 70 Treads 10038 | . . . . . 124 509 936 539 397 80 142 885 574 283 746 385 663 306 157 69 443 369 243 136 635 424 101 80 268 283 261 Legs 3184 | 1 1244 548 212 459 496 224 . . . . . . . . . . . . . . . . . . . . . . . . . Wheels . | . . . . . . . . . . . . . . . . . . . . . . . . . . . . . . . . Hover . | . . . . . . . . . . . . . . . . . . . . . . . . . . . . . . . . Flight . | . . . . . . . . . . . . . . . . . . . . . . . . . . . . . . . . Fastest Speed 50 | 120 120 120 120 120 125 160 160 160 160 160 160 160 250 250 250 250 166 166 166 166 163 163 170 170 170 170 170 170 161 161 50 Average Speed 171 | 120 120 120 120 126 170 173 160 160 160 160 160 190 250 250 250 250 166 166 166 166 164 163 170 170 170 170 170 170 169 161 138 Slowest Speed 260 | 120 120 120 120 200 195 240 160 160 160 160 160 260 250 250 250 250 166 166 166 166 166 170 170 170 170 170 170 170 170 161 180 Overloaded Moves . | . . . . . . . . . . . . . . . . . . . . . . . . . . . . . . . . Propulsion Burnouts . | . . . . . . . . . . . . . . . . . . . . . . . . . . . . . . . . Robots Hopped . | . . . . . . . . . . . . . . . . . . . . . . . . . . . . . . . . Cave-ins Triggered . | . . . . . . . . . . . . . . . . . . . . . . . . . . . . . . . . Exploration Rate (%) 53 | 2 98 99 60 84 47 87 30 77 63 68 45 19 80 41 85 61 19 51 54 86 53 19 57 41 79 68 6 80 14 15 20 Regions Visited 31 Branch Regions 21 Pre-discovered Areas 3 | . . . . . . . . . . 1 . . . . 2 . . . . . . . . . . . . . . . . Known Exits Taken 8 | . . . . . . . 1 . . . . 1 . . . . 1 . . . . 1 . . . 1 1 . 1 1 . Unknown Exits Taken 22 | 1 1 1 1 1 1 1 . 1 1 1 1 . 1 1 1 1 . 1 1 1 1 . 1 1 1 . . . . . . Scrap Searched . | . . . . . . . . . . . . . . . . . . . . . . . . . . . . . . . . Spaces Dug 827 | . 21 24 . 10 16 49 65 . . . . 62 . . . 18 140 . 5 . 47 155 . 48 78 65 . . 2 6 16 Terrain Destroyed 10824 | . 313 77 . 124 243 577 735 73 87 11 19 884 121 132 . 225 1130 956 1481 . 1158 1228 45 222 408 158 . 118 128 111 60 Melee 6 | . . . . . . . . . . . . . . . . . . . . . . . . . . . . . . 6 . Projectile 226 | . . . . . 18 7 . . . . . 94 . . . . 79 . . . . . . . . . . . 4 2 22 AOE 10592 | . 313 77 . 124 225 570 735 73 87 11 19 790 121 132 . 225 1051 956 1481 . 1158 1228 45 222 408 158 . 118 124 103 38 Terrain Rammed . | . . . . . . . . . . . . . . . . . . . . . . . . . . . . . . . . Walls Destroyed . | . . . . . . . . . . . . . . . . . . . . . . . . . . . . . . . . Machines Disabled . | . . . . . . . . . . . . . . . . . . . . . . . . . . . . . . . . Actions | -11 -10 -10 -10 -9 -8 -8 -7 -7 -7 -7 -6 -6 -6 -6 -6 -5 -5 -5 -5 -5 -5 -4 -4 -4 -4 -3 -3 -3 -2 -1 -1 --------- Run | Scr Mat Min Exi Min Mat Sto Fac Low Low Dat Pro Fac Low Low Zio Pro Fac Ext Cet Arc Hub Fac Upp Upp War Pro Res DSF Res Acc Com Total 29685 | 1 1566 634 211 540 926 2248 2236 546 402 80 153 3840 609 464 745 511 2001 1563 2199 317 2277 1332 252 141 1037 503 106 92 357 494 1302 Wait 13697 | . 190 59 . 34 187 1340 1101 . . . 6 2493 1 168 . 102 982 1109 1882 231 1686 793 . . 233 69 . 5 41 171 814 Move 13260 | . 1243 547 211 458 619 732 935 538 396 79 141 884 573 282 745 384 662 305 156 68 442 368 242 135 634 423 100 79 267 282 330 Hop . | . . . . . . . . . . . . . . . . . . . . . . . . . . . . . . . . Pick Up 45 | . . 1 . 3 2 1 3 . . . . 19 2 1 . . 1 2 1 1 . 5 . . . . . . 1 . 2 Fast Attach 45 | . . . . . 1 1 1 . . . . 28 . 1 . . 5 . . . 2 . . . . . 1 . . 1 4 Attach 67 | . 1 1 . 1 1 3 2 . . . . 25 3 . . . 12 1 . . . 6 1 . . . . 1 2 1 6 Detach 78 | . 4 3 . . . 1 1 . . . 1 26 . 2 . . 13 . 1 . . 4 . . . . . 1 2 2 17 Swap 123 | . 15 3 . 4 20 32 20 . . . 1 1 . . . 4 1 3 2 . 1 1 . . . . . . 1 1 13 Drop 136 | 1 . 2 . 3 4 6 4 2 . . 2 48 2 3 . . 11 3 6 1 . 10 2 . 1 . . 1 2 3 19 Fire 2027 | . 108 14 . 28 82 125 164 6 6 1 2 313 9 7 . 18 311 140 151 16 142 144 7 6 53 11 1 5 40 22 95 Melee 11 | . . . . . . . . . . . . . . . . . . . . . . . . . . . . . . 11 . Ram . | . . . . . . . . . . . . . . . . . . . . . . . . . . . . . . . . Kick 24 | . 5 4 . 9 6 . . . . . . . . . . . . . . . . . . . . . . . . . . Crush 53 | . . . . . 4 7 5 . . . . 3 16 . . 3 3 . . . 4 1 . . . . 4 . 1 . 2 Escape Stasis . | . . . . . . . . . . . . . . . . . . . . . . . . . . . . . . . . Rewire 119 | . . . . . . . . . . . . . 3 . . . . . . . . . . . 116 . . . . . . Trap . | . . . . . . . . . . . . . . . . . . . . . . . . . . . . . . . . Miscellaneous . | . . . . . . . . . . . . . . . . . . . . . . . . . . . . . . . . Route ------- -11/Scrapyard -10/Materials (discovered 4 exits: [*Mat x3] / *Min) -10/Mines (discovered 3 exits: [*Mat x2] / *Exi) -10/Exiles -9/Mines (discovered 2 exits: *Mat x2) -8/Materials (discovered 2 exits: *Fac / *Sto) -8/Storage -7/Factory (discovered 2 exits: *Low x2) -7/Lower Caves -7/Lower Caves (discovered 2 exits: *Fac / *Dat) -7/Data Miner -6/Proximity Caves -6/Factory (discovered 2 exits: *Low x2) -6/Lower Caves -6/Lower Caves -6/Zion -5/Proximity Caves -5/Factory (discovered 4 exits: *Upp x2 / *Ext x2) -5/Extension (discovered 2 exits: *Fac / [*Cet]) -5/Cetus -5/Archives (discovered 3 exits: *Fac / *Hub x2) -5/Hub_04(d) (discovered 3 exits: *Fac x3) -4/Factory (discovered 2 exits: *Res / *Upp) -4/Upper Caves -4/Upper Caves -4/Warlord -3/Proximity Caves -3/Research (discovered 4 exits: Res x3 / DSF) -3/DSF -2/Research -1/Access -1/Command (discovered 2 exits: *Sur x2) To Epsilon Eridani History --------- Turn | Location | Event 2 | -11/Scrapyard | Discovered new exit (range 0) 2 | -11/Scrapyard | Entered Materials 105 | -10/Materials | Discovered new exit (range 7) 335 | -10/Materials | Build established: Mutant 359 | -10/Materials | Discovered new exit (range 5) 598 | -10/Materials | Discovered new exit (range 16) 948 | -10/Materials | Discovered new exit (range 10) 1992 | -10/Materials | Entered Mines 1993 | -10/Mines | Met a Derelict testing a Signal Generator 1996 | -10/Mines | Found Signal Generator 2031 | -10/Mines | Discovered new exit (range 15) 2055 | -10/Mines | Discovered new exit (range 15) 2242 | -10/Mines | Deemed a non-threat by the Exiles lab entrance 2757 | -10/Mines | Discovered new exit (range 5) 2762 | -10/Mines | Entered Exiles 2792 | -10/Exiles | Met 8R-AWN 2812 | -10/Exiles | Met EX-HEX 2845 | -10/Exiles | Met EX-BIN 2862 | -10/Exiles | Aligned with FarCom system 2863 | -10/Exiles | Given EX-Vault access code 2894 | -10/Exiles | Opened EX-Vault 2922 | -10/Exiles | Warned to stay clear of 0b10 Research branches 2960 | -10/Exiles | Met EX-DEC 3006 | -10/Exiles | Discovered new exit (range 10) 3016 | -10/Exiles | Entered Mines 3034 | -9/Mines | Met a Derelict bent on vengeance 3211 | -9/Mines | Assembled infested the area 3343 | -9/Mines | Discovered new exit (range 6) 3346 | -9/Mines | Received a Mining Laser from a helpful Derelict 3366 | -9/Mines | Core integrity fell below 50% 3552 | -9/Mines | Received a Rocket Launcher from a helpful Derelict 3581 | -9/Mines | Discovered new exit (range 5) 3728 | -9/Mines | Entered Materials 3728 | -8/Materials | Evolved 4 slots: Propulsion x2, Utility x2 3833 | -8/Materials | Discovered new exit (range 3) 4875 | -8/Materials | Discovered new exit (range 12) 5247 | -8/Materials | Entered Storage 5647 | -8/Storage | First assault squad dispatched 5737 | -8/Storage | Destroyed 9 combat bots 5757 | -8/Storage | Garrison activated, responded to threat 6164 | -8/Storage | Found Powered Armor 7711 | -8/Storage | Destroyed 9 combat bots 7798 | -8/Storage | High security lockdown imminent 7878 | -8/Storage | High security lockdown engaged 7932 | -8/Storage | Sterilization system engaged 7932 | -8/Storage | Non-combat units ordered to evacuate 7971 | -8/Storage | Destroyed 19 combat bots 8032 | -8/Storage | Combat units ordered to evacuate 8192 | -8/Storage | Discovered new exit (range 7) 8232 | -8/Storage | Ambient heat levels rising (+10) 8242 | -8/Storage | Entered Factory 8242 | -7/Factory | Evolved 2 slots: Utility x2 9042 | -7/Factory | First assault squad dispatched 9658 | -7/Factory | Destroyed 10 combat bots 10227 | -7/Factory | Identified exit to Lower Caves 10360 | -7/Factory | Destroyed 8 combat bots 10437 | -7/Factory | High security lockdown imminent 10468 | -7/Factory | Destroyed 8 combat bots 10517 | -7/Factory | High security lockdown engaged 10672 | -7/Factory | Destroyed 12 combat bots 10757 | -7/Factory | Destroyed 13 combat bots 10888 | -7/Factory | Destroyed 21 combat bots 11046 | -7/Factory | Destroyed 24 combat bots 11066 | -7/Factory | Sterilization system engaged 11066 | -7/Factory | Non-combat units ordered to evacuate 11101 | -7/Factory | Destroyed 13 combat bots 11166 | -7/Factory | Combat units ordered to evacuate 11176 | -7/Factory | Allied Derelicts emerged from ambush trap array 11304 | -7/Factory | Entered Lower Caves 11304 | -7/Lower Caves | Accompanied by 3 allies 11543 | -7/Lower Caves | Encountered a Warlord checkpoint 12070 | -7/Lower Caves | Spotted B-75 Beast 12086 | -7/Lower Caves | Destroyed B-75 Beast 12169 | -7/Lower Caves | Discovered new exit (range 9) 12180 | -7/Lower Caves | Entered another Lower Caves area 12368 | -7/Lower Caves | Discovered new exit (range 13) 12661 | -7/Lower Caves | Attracted the attention of an 0b10 checkpoint 12797 | -7/Lower Caves | Discovered new exit (range 11) 12828 | -7/Lower Caves | Entered Data Miner 12828 | -7/Data Miner | Discovered new exit (range 6) 12859 | -7/Data Miner | Met Data Miner 12892 | -7/Data Miner | Learned location of Section 7 (-3) 12892 | -7/Data Miner | Acquired the access code to Warlord's prototype stash 12918 | -7/Data Miner | Received God Mode back door access code from Data Miner 12955 | -7/Data Miner | Data Conduit disabled 12957 | -7/Data Miner | Entered Proximity Caves 13181 | -6/Proximity Caves | Discovered new exit (range 9) 13181 | -6/Proximity Caves | Spotted B-75 Beast 13197 | -6/Proximity Caves | Entered Factory 13197 | -6/Factory | Evolved 2 slots: Power x1, Utility x1 13530 | -6/Factory | Identified exit to Lower Caves 13683 | -6/Factory | Garrison activated, responded to threat 14081 | -6/Factory | Garrison activated, responded to threat 14171 | -6/Factory | Cargo convoy interrupted 14981 | -6/Factory | First assault squad dispatched 16491 | -6/Factory | Destroyed 10 combat bots 16883 | -6/Factory | Destroyed 7 combat bots 17119 | -6/Factory | Destroyed 9 combat bots 17507 | -6/Factory | High security lockdown imminent 17534 | -6/Factory | Destroyed 9 combat bots 17587 | -6/Factory | High security lockdown engaged 17679 | -6/Factory | Destroyed 9 combat bots 17752 | -6/Factory | Destroyed 8 combat bots 17812 | -6/Factory | Sterilization system engaged 17812 | -6/Factory | Non-combat units ordered to evacuate 17841 | -6/Factory | Destroyed 12 combat bots 17912 | -6/Factory | Combat units ordered to evacuate 18018 | -6/Factory | Lost 5 parts (1p2n1u1w) 18112 | -6/Factory | Ambient heat levels rising (+10) 18131 | -6/Factory | Entered Lower Caves 18742 | -6/Lower Caves | Encountered a Warlord checkpoint 18779 | -6/Lower Caves | Found Powered Armor 19265 | -6/Lower Caves | Discovered new exit (range 14) 19635 | -6/Lower Caves | Entered another Lower Caves area 19814 | -6/Lower Caves | Discovered new exit (range 19) 20078 | -6/Lower Caves | Encountered a Warlord checkpoint 20097 | -6/Lower Caves | Found Launcher Loader 20532 | -6/Lower Caves | Entered Zion 20632 | -6/Zion | System corruption cleaned by Quarantine Array 20697 | -6/Zion | Gained Derelict followers 20755 | -6/Zion | Discovered new exit (range 11) 20992 | -6/Zion | Given A8's code to call for help 21405 | -6/Zion | Learned location of Armory (-3) 21655 | -6/Zion | Rebuked by Imprinter 22395 | -6/Zion | Entered Proximity Caves 22395 | -5/Proximity Caves | Accompanied by 5 allies 23374 | -5/Proximity Caves | Discovered new exit (range 5) 23491 | -5/Proximity Caves | Entered Factory 23491 | -5/Factory | Evolved 2 slots: Utility x2 23577 | -5/Factory | Discovered new exit (range 19) 23637 | -5/Factory | Identified exit to Upper Caves 23892 | -5/Factory | Destroyed 8 combat bots 24047 | -5/Factory | Identified exit to Extension 24091 | -5/Factory | First assault squad dispatched 24843 | -5/Factory | High security lockdown imminent 24898 | -5/Factory | Destroyed 10 combat bots 24923 | -5/Factory | High security lockdown engaged 25142 | -5/Factory | Destroyed 17 combat bots 25245 | -5/Factory | Destroyed 14 combat bots 25333 | -5/Factory | Destroyed 13 combat bots 25380 | -5/Factory | Destroyed 12 combat bots 25514 | -5/Factory | Destroyed 7 combat bots 25578 | -5/Factory | Sterilization system engaged 25578 | -5/Factory | Non-combat units ordered to evacuate 25598 | -5/Factory | Destroyed 20 combat bots 25678 | -5/Factory | Combat units ordered to evacuate 25878 | -5/Factory | Ambient heat levels rising (+10) 25927 | -5/Factory | Found Launcher Loader 26028 | -5/Factory | Ambient heat levels rising (+10) 26083 | -5/Factory | Entered Extension 26151 | -5/Extension | Rescued A7 26383 | -5/Extension | First assault squad dispatched 26408 | -5/Extension | Disrupted transfer network 26514 | -5/Extension | High security lockdown imminent 26594 | -5/Extension | High security lockdown engaged 26777 | -5/Extension | Destroyed 17 combat bots 26876 | -5/Extension | Destroyed 17 combat bots 27048 | -5/Extension | Destroyed 23 combat bots 27229 | -5/Extension | Extracted ID and sensor layout for unrecognized location from A7's data core 27234 | -5/Extension | Destroyed 34 combat bots 27431 | -5/Extension | Sterilization system engaged 27431 | -5/Extension | Non-combat units ordered to evacuate 27467 | -5/Extension | Destroyed 44 combat bots 27531 | -5/Extension | Combat units ordered to evacuate 27731 | -5/Extension | Ambient heat levels rising (+10) 27849 | -5/Extension | Discovered new exit (range 22) 27852 | -5/Extension | Discovered new exit (range 20) 27881 | -5/Extension | Ambient heat levels rising (+10) 27887 | -5/Extension | Entered Cetus 28689 | -5/Cetus | Spotted Cetus Guard 28689 | -5/Cetus | Spotted Cetus Guard 28697 | -5/Cetus | Spotted Cetus Guard 28698 | -5/Cetus | Destroyed Cetus Guard 28698 | -5/Cetus | Spotted Cetus Guard 28708 | -5/Cetus | Destroyed Cetus Guard 28714 | -5/Cetus | Destroyed Cetus Guard 28720 | -5/Cetus | Destroyed Cetus Guard 29303 | -5/Cetus | High security lockdown imminent 29326 | -5/Cetus | Destroyed 7 combat bots 29383 | -5/Cetus | High security lockdown engaged 29496 | -5/Cetus | Destroyed 19 combat bots 29620 | -5/Cetus | Destroyed 19 combat bots 29703 | -5/Cetus | Destroyed 8 combat bots 29752 | -5/Cetus | Destroyed 16 combat bots 29932 | -5/Cetus | Sterilization system engaged 29932 | -5/Cetus | Non-combat units ordered to evacuate 29934 | -5/Cetus | Destroyed 30 combat bots 30032 | -5/Cetus | Combat units ordered to evacuate 30125 | -5/Cetus | Cetus Manufacturing Module disabled 30141 | -5/Cetus | Discovered new exit (range 23) 30222 | -5/Cetus | Entered Archives 30351 | -5/Archives | Discovered new exit (range 22) 30363 | -5/Archives | Discovered new exit (range 22) 30396 | -5/Archives | Discovered new exit (range 22) 30600 | -5/Archives | Entered Hub_04(d) 30834 | -5/Hub_04(d) | Destroyed 7 combat bots 31200 | -5/Hub_04(d) | First assault squad dispatched 31311 | -5/Hub_04(d) | Destroyed 11 combat bots 31445 | -5/Hub_04(d) | High security lockdown imminent 31525 | -5/Hub_04(d) | High security lockdown engaged 31638 | -5/Hub_04(d) | Destroyed 11 combat bots 31676 | -5/Hub_04(d) | Destroyed 10 combat bots 31753 | -5/Hub_04(d) | Destroyed 8 combat bots 31830 | -5/Hub_04(d) | Destroyed 8 combat bots 31905 | -5/Hub_04(d) | Destroyed 16 combat bots 32069 | -5/Hub_04(d) | System corruption reached 10% 32103 | -5/Hub_04(d) | Destroyed 26 combat bots 32314 | -5/Hub_04(d) | Sterilization system engaged 32314 | -5/Hub_04(d) | Non-combat units ordered to evacuate 32350 | -5/Hub_04(d) | Destroyed 37 combat bots 32414 | -5/Hub_04(d) | Combat units ordered to evacuate 32601 | -5/Hub_04(d) | Network Hub disabled 32614 | -5/Hub_04(d) | Ambient heat levels rising (+10) 32630 | -5/Hub_04(d) | Discovered new exit (range 13) 32723 | -5/Hub_04(d) | Spotted B-75 Beast 32741 | -5/Hub_04(d) | Network Hub disabled 32756 | -5/Hub_04(d) | Discovered new exit (range 17) 32764 | -5/Hub_04(d) | Ambient heat levels rising (+10) 32811 | -5/Hub_04(d) | Discovered new exit (range 23) 32844 | -5/Hub_04(d) | Network Hub disabled 32914 | -5/Hub_04(d) | Ambient heat levels rising (+10) 33064 | -5/Hub_04(d) | Ambient heat levels rising (+10) 33194 | -5/Hub_04(d) | Entered Factory 33194 | -4/Factory | Evolved 2 slots: Power x1, Utility x1 33412 | -4/Factory | High security lockdown imminent 33424 | -4/Factory | Garrison activated, responded to threat 33454 | -4/Factory | Destroyed 8 combat bots 33492 | -4/Factory | High security lockdown engaged 33494 | -4/Factory | Garrison activated, responded to threat 33538 | -4/Factory | Destroyed 7 combat bots 33694 | -4/Factory | Destroyed 21 combat bots 33799 | -4/Factory | Destroyed 23 combat bots 33896 | -4/Factory | Destroyed 13 combat bots 33943 | -4/Factory | Destroyed 8 combat bots 34148 | -4/Factory | Destroyed 24 combat bots 34318 | -4/Factory | Destroyed 13 combat bots 34323 | -4/Factory | Sterilization system engaged 34323 | -4/Factory | Non-combat units ordered to evacuate 34399 | -4/Factory | Destroyed 25 combat bots 34423 | -4/Factory | Combat units ordered to evacuate 34606 | -4/Factory | Discovered new exit (range 23) 34609 | -4/Factory | Discovered new exit (range 16) 34623 | -4/Factory | Ambient heat levels rising (+10) 34644 | -4/Factory | Identified exit to Research 34770 | -4/Factory | Identified exit to Upper Caves 34773 | -4/Factory | Ambient heat levels rising (+10) 34777 | -4/Factory | Found Launcher Loader 34787 | -4/Factory | Entered Upper Caves 34804 | -4/Upper Caves | Encountered a Warlord checkpoint 34806 | -4/Upper Caves | Spotted B-86 Titan 34827 | -4/Upper Caves | Destroyed B-86 Titan 35177 | -4/Upper Caves | Discovered new exit (range 15) 35209 | -4/Upper Caves | Entered another Upper Caves area 35439 | -4/Upper Caves | Discovered new exit (range 5) 35446 | -4/Upper Caves | Entered Warlord 35508 | -4/Warlord | System corruption cleaned by Quarantine Array 36153 | -4/Warlord | Build established: Commander-Mutant 36271 | -4/Warlord | Met Warlord 36287 | -4/Warlord | Opened Warlord's prototype stash 36296 | -4/Warlord | Warlord's base attacked by MAIN.C 36474 | -4/Warlord | P-80 Master assimilated allied 26-3NI(Y) 36507 | -4/Warlord | Destroyed 7 combat bots 36538 | -4/Warlord | Spotted B-90 Cyclops 36541 | -4/Warlord | Spotted B-86 Titan 36637 | -4/Warlord | Spotted B-90 Cyclops 36638 | -4/Warlord | Destroyed B-90 Cyclops 36642 | -4/Warlord | Spotted Executioner 36643 | -4/Warlord | Destroyed B-86 Titan 36645 | -4/Warlord | Destroyed Executioner 36646 | -4/Warlord | Warlord forces counterattacked 36647 | -4/Warlord | Spotted B-86 Titan 36648 | -4/Warlord | Destroyed B-90 Cyclops 36688 | -4/Warlord | Spotted Striker 36692 | -4/Warlord | Destroyed B-86 Titan 36714 | -4/Warlord | Spotted Executioner 36714 | -4/Warlord | Spotted Executioner 36715 | -4/Warlord | Spotted B-90 Cyclops 36715 | -4/Warlord | P-70 Sage assimilated allied 5O-8Z4(l) 36721 | -4/Warlord | Destroyed Executioner 36721 | -4/Warlord | Destroyed Executioner 36729 | -4/Warlord | Destroyed B-90 Cyclops 36756 | -4/Warlord | Destroyed 13 combat bots 36803 | -4/Warlord | Spotted Executioner 36828 | -4/Warlord | Destroyed 10 combat bots 36833 | -4/Warlord | Discovered new exit (range 15) 36898 | -4/Warlord | Spotted B-86 Titan 36898 | -4/Warlord | Spotted B-90 Cyclops 36938 | -4/Warlord | Entered Proximity Caves 37242 | -3/Proximity Caves | Build established: Mutant 37552 | -3/Proximity Caves | Attracted the attention of an 0b10 checkpoint 37649 | -3/Proximity Caves | Discovered exit to Research (range 9) 37740 | -3/Proximity Caves | Entered Research 37740 | -3/Research | Evolved 2 slots: Propulsion x1, Utility x1 37832 | -3/Research | Identified exit to Research 37921 | -3/Research | Identified exit to DSF 37921 | -3/Research | Entered DSF 37958 | -3/DSF | Additional patrols routed to DSF 38020 | -3/DSF | Discovered exit to Research (range 23) 38068 | -3/DSF | Entered Research 38068 | -2/Research | Warlord forces began assault on 0b10 38068 | -2/Research | Evolved 2 slots: Propulsion x1, Weapon x1 38143 | -2/Research | Met up with Warlord 38178 | -2/Research | Research machine network offline 38483 | -2/Research | Spotted Striker 38498 | -2/Research | Destroyed Striker 38519 | -2/Research | Borebot progress halted 38578 | -2/Research | Discovered new exit (range 14) 38593 | -2/Research | Borebot progress halted 38634 | -2/Research | Identified exit to Access 38644 | -2/Research | Entered Access 38644 | -1/Access | Evolved 2 slots: Power x1, Weapon x1 38664 | -1/Access | Garrison activated, responded to threat 38697 | -1/Access | Identified exit to Command 39153 | -1/Access | Build established: Hacker-Assassin 39354 | -1/Access | Entered Command 39384 | -1/Command | System corruption reached 10% 39669 | -1/Command | Build established: Generator-Bomber 39727 | -1/Command | Spotted M Guard 39729 | -1/Command | Spotted M Guard 39729 | -1/Command | Spotted Combat Programmer 39729 | -1/Command | Spotted Combat Programmer 39746 | -1/Command | Found Antimissile System 39748 | -1/Command | Destroyed Combat Programmer 39755 | -1/Command | Destroyed Combat Programmer 39773 | -1/Command | Destroyed M Guard 39794 | -1/Command | Destroyed M Guard 39794 | -1/Command | All MAIN.C guards destroyed 39805 | -1/Command | Lost 3 parts (1p2w) 39960 | -1/Command | Met MAIN.C 39962 | -1/Command | 0b10 Conduit disabled 39987 | -1/Command | Destroyed MAIN.C Shell 39989 | -1/Command | Surrendered to MAIN.C 39989 | -1/Command | Loaded intel: 54 machine locations 39989 | -1/Command | Loaded intel: 102 trap records 39989 | -1/Command | Identified exit to Surface 39989 | -1/Command | Discovered exit to Surface (range 70) 39989 | -1/Command | Discovered exit to Surface (range 46) 40315 | -1/Command | Build established: Generator-Mutant 40443 | -1/Command | MAIN.C activated Command garrisons 40482 | -1/Command | Unknown forces attacked Command 40482 | -1/Command | Spotted EQ-006 40482 | -1/Command | Spotted EQ-002 40482 | -1/Command | Spotted EQ-003 40482 | -1/Command | Spotted EQ-016 40482 | -1/Command | Spotted EQ-013 40482 | -1/Command | Spotted EQ-000 40482 | -1/Command | Spotted EQ-001 40482 | -1/Command | Spotted EQ-005 40482 | -1/Command | Spotted EQ-004 40526 | -1/Command | Found Exp. Force Field 40558 | -1/Command | Lost 4 parts (1p2n1u) 40573 | -1/Command | Spotted EQ-037 40573 | -1/Command | Spotted EQ-021 40573 | -1/Command | Spotted EQ-022 40573 | -1/Command | Spotted EQ-027 40573 | -1/Command | Spotted EQ-018 40573 | -1/Command | Spotted EQ-019 40573 | -1/Command | Spotted EQ-020 40587 | -1/Command | Spotted EQ-023 40609 | -1/Command | Found Adv. Kinecellerator 40610 | -1/Command | Destroyed EQ-023 40613 | -1/Command | Destroyed EQ-037 40622 | -1/Command | Spotted EQ-014 40642 | -1/Command | Spotted EQ-034 40670 | -1/Command | Spotted EQ-012 40672 | -1/Command | Spotted EQ-025 40673 | -1/Command | Spotted EQ-039 40673 | -1/Command | Spotted EQ-054 40673 | -1/Command | Spotted EQ-051 40673 | -1/Command | Spotted EQ-040 40673 | -1/Command | Spotted EQ-038 40674 | -1/Command | Spotted EQ-031 40683 | -1/Command | Destroyed EQ-051 40718 | -1/Command | Spotted EQ-046 40723 | -1/Command | Spotted EQ-030 40724 | -1/Command | Spotted EQ-057 40728 | -1/Command | Lost 6 parts (2p3u1w) 40730 | -1/Command | Spotted EQ-035 40736 | -1/Command | Spotted EQ-042 40755 | -1/Command | Spotted EQ-059 40763 | -1/Command | Spotted EQ-053 40780 | -1/Command | Spotted EQ-036 40790 | -1/Command | Spotted EQ-077 40794 | -1/Command | Destroyed EQ-077 40802 | -1/Command | Spotted EQ-044 40809 | -1/Command | Spotted EQ-071 40810 | -1/Command | Spotted EQ-060 40827 | -1/Command | Spotted EQ-062 40830 | -1/Command | Destroyed EQ-044 40831 | -1/Command | Spotted EQ-065 40834 | -1/Command | Found Adv. Kinecellerator 40838 | -1/Command | Spotted EQ-072 40838 | -1/Command | Destroyed EQ-062 40839 | -1/Command | Spotted EQ-080 40840 | -1/Command | Spotted EQ-075 40861 | -1/Command | Spotted EQ-063 40868 | -1/Command | Core integrity fell below 50% 40870 | -1/Command | Spotted EQ-081 40878 | -1/Command | Discovered exit to Surface (range 15) 40878 | -1/Command | Discovered exit to Surface (range 104) 40878 | -1/Command | Extracted map data and part IDs from MAIN.C's data core 40905 | *** | Escaped! Last Messages --------------- 40872_ Knocked back. 40872_ Slug penetrates Earth. 40872_ Imp. Heavy Siege Treads destroyed. [Purchased: Enh. Armored Medium Treads] 40873_ The unstable cave ceiling collapses. 40874_ Slug penetrates Reinforced Barrier. 40875_ The unstable cave ceiling collapses. 40875_ Slug penetrates Earth. 40875_ Imp. Heavy Siege Treads destroyed. [Purchased: Enh. Armored Medium Treads] 40876_ The unstable cave ceiling collapses. 40877_ Adv. Weapon Cycler destroyed. 40877_ Critical hit (Blast). 40877_ Knocked back. 40877_ Penetrated by Slug. 40878_ The unstable cave ceiling collapses. 40878_ EXIT=FOUND: SURFACE 40878_ Acquired data core, extracted map data and part IDs. 40878_ Acquired 103 matter. 40879_ The unstable cave ceiling collapses. Map ----- +----------------------------------------------------+ | ?????# + T" #???????????????????????????? | | ###### # """ #??????##########???????????? | | # # # "" #??????# #####???????? | | # # # #??????# + #???????? | | # + # ######## """" ### #???????? | | # # # "" # + """" #?# #???????? | | ## ## + """" # # """" ###+###?????? | | ## ## # """" # # """" ## #?????? | | ## ## # "" # + ## #?????? | | ## ## # # # ## #?????? | | ## ## # # # ## #?????? | | # ###########+########+#####+####### #?????? | | # + #?????? | | # ########+#### # #?????? | | # #????# # # #?????? | | # ###### + + #?????? | | # ## + ##### ##+###?????? | | ## ### #???# # #?????? | | ## #?# #???# + #?????? | | #######+### #???# # #?????? | | ######### ### ########???# # #?????? | | ## #?# #??????????# + #?????? | | ## #?# #??????????# # #?????? | | """" ## #?# ######?????# # #?????? | | """" ## ### ## #?????# + #?????? | | """" # ######+##### @ #?????# # #?????? | | """" +% #?????# ######?????? | | # % #?????# #??????????? | | # ##### #########?????# ####??????##### | | ######???# #????????????## #?????????#???? | | +##+####????????# #????????????# #????????#?### | | #??????????# #??????####### #????????#?# " | | #?????????## ##???### % #????????#?# " | | ########### ##### #+## ## % #????????#?# " | | + %%## ###/ ###??????#?# " | | # ## % %% % #??????#?# | | "" # ######## ## ""% #??????#?# | | T"" # #??????####### "" % % ###????#?#" | | "" # #???########## """ % % # #???##?# | | ###+## #???# + + "" %% #### #?# | | #???# ### % # #?# | | ##???# #?# #?# | | #????# #?### # # ##?# | | #????# #?# #?# | | #### ????# #### # ### | | ???# #????####+## # # % #%%!*### | | ####+# ####### % % % !*! | | # / % ] % | | # # % % | | # # #### # # # % #### | +----------------------------------------------------+ Best States ------------- Heat Dissipation 152 Energy Generation 97 Energy Capacity 1100 Matter Stores 300 Matter Capacity 300 Sight Range 23 Terrain Scan Range 24 Terrain Scan Density 1010 Armor Coverage 2400 Weapon Shielding 66 Point Defense Rating 240 Weapon Cycling 25 Evasion (%) 55 Targeting Accuracy 8 Launcher Accuracy 30 Core Analysis 8 Recoil Reduction 6 Matter Filtering 50 Kinecelleration 50 Offensive Hacking 48 Item Schematics ----------------- Combat Drone Bay | -7/Data Miner | Free Lgt. Regenerative Plating | -7/Data Miner | Free Biomechanical Wings | -7/Data Miner | Free Exp. Targeting Computer | -7/Data Miner | Free Scatter Rocket Array | -7/Data Miner | Free Cmb. Gravmag System | -7/Data Miner | Free Imp. Weapon Cycler | -7/Data Miner | Free Enh. Gauss Cannon | -7/Data Miner | Free Coil Gun | -7/Data Miner | Free Gyrokinetic Inverter | -7/Data Miner | Free Hardcell Cannon | -7/Data Miner | Free Robot Schematics ------------------ G-50 Soldier | -7/Data Miner | Free H-55 Commando | -7/Data Miner | Free R-10 Processor | -7/Data Miner | Free L-41 Fighter | -7/Data Miner | Free M-22 Extractor | -7/Data Miner | Free C-35 Carver | -7/Data Miner | Free Fabricated ------------ Nothing Alien Tech Used ----------------- None Achievements -------------- None Challenges ------------ None Cogshop Purchases (162) ------------------------- Imp. Aluminum Leg (699) Imp. Aluminum Leg (699) Imp. Flight Unit (Loot Box) Imp. Assault Rifle (699) Imp. Assault Rifle (699) Imp. Targeting Computer (699) Imp. Ion Engine (699) Mni. Grenade Launcher (899) Rocket Launcher (1152) Rocket Launcher (1152) Hacking Suite (Loot Box) Lgt. Assault Rifle (Loot Box) Imp. Spread Laser (Loot Box) Cryofiber Web (Loot Box) Imp. Medium Laser (Loot Box) Sml. Laser (Loot Box) Core Analyzer (Loot Box) Hacking Suite (Loot Box) Hvy. Ion Engine (786) Titanium Leg (713) Hrd. Medium Armor Plating (386) Hrd. Medium Armor Plating (386) Imp. Weapon Shielding (386) Imp. Weapon Shielding (386) Carbon-fiber Leg (772) Com. Battery (407) Med. Treads (1066) Med. Treads (1066) Imp. Medium Treads (Loot Box) Imp. Remote Datajack (Loot Box) Angular Momentum Engine (Loot Box) Gauss Cannon (593) Hrd. Heavy Armor Plating (1348) Imp. Cooling System (1090) Imp. Shield Generator (1220) Lrn. Tractor Beam (1086) Powered Armor (958) Launcher Guidance Computer (646) Hvy. Rocket Launcher (691) Hvy. Rocket Launcher (691) Hvy. Rocket Launcher (691) Med. Treads (1154) Spk. Medium Treads (1541) Lrn. Tractor Beam (1163) Force Field (1455) Matter Compressor (1569) Angular Momentum Engine (985) Spk. Medium Treads (1853) Energy Well (1562) Imp. Medium Armor Plating (655) Angular Momentum Engine (904) Weapon Cycler (745) Powered Armor (683) Hvy. Flak Cannon (924) Force Field (1050) Arm. Leg (660) Lrn. Tractor Beam (784) Enh. Optical Array (893) Cld. Deuterium Engine (1498) Prc. Matter Filter (1103) Tri-rail Accelerator (1074) Lrn. Missile Launcher (1340) Arm. Leg (824) Exp. Heat Sink (1258) 2N-1CE's Frost Array (Loot Box) Lrn. Missile Launcher (1263) Arm. Medium Treads (1204) Lrn. Tractor Beam (1087) Lrn. Missile Launcher (1696) Cld. Deuterium Engine (1899) Arm. Medium Treads (1204) Lrn. Missile Launcher (1831) Tri-rail Accelerator (943) Launcher Loader (976) Lrn. Proton Cannon (962) Imp. Heavy Treads (1413) Imp. Force Field (1286) Adv. Signal Interpreter (780) Imp. Force Field (1518) Hrd. Medium Armor Plating (631) Micro-nuke Launcher (1852) Launcher Loader (1244) System Restoration Module (1119) Hrd. Medium Armor Plating (527) Launcher Loader (1244) Hvy. Antimatter Reactor (1356) Neutron Missile Launcher (3891) Prc. Matter Filter (2891) Neutron Missile Launcher (2924) Adv. Energy Well (904) Lrn. Tractor Beam (2117) Antimatter Reactor (1579) Imp. Heavy Treads (963) Neutron Missile Launcher (3442) Lrn. Tractor Beam (2267) HERF Cannon (924) Hrd. Medium Armor Plating (701) Matter Filter (2299) Enh. Armored Medium Treads (2404) Imp. Launcher Guidance Computer (1422) Lyr. Medium Armor Plating (759) Particle Reactor (1639) Lrn. Tractor Beam (1811) Matter Filter (2042) Adv. Signal Interpreter (1947) Imp. Heavy Siege Treads (1284) Adv. Matter Compressor (933) Adv. Force Field (2713) Com. HERF Cannon (1257) Centrium Heavy Treads (3117) Launcher Loader (2120) Prc. Matter Filter (1915) Lrn. Tractor Beam (1491) Exp. Terrain Scan Processor (3540) Adv. Terrain Scanner (1633) Lyr. Medium Armor Plating (900) Graviton Reactor (2618) Prc. Matter Filter (1482) Lrn. Terrain Scanner (1843) Biometal Heavy Treads (2436) Adv. Signal Interpreter (936) Shock Maul (1855) Exp. Hacking Suite (2799) Exp. Hacking Suite (2799) Exp. Hacking Suite (2799) Imp. Quantum Reactor (1661) Imp. Quantum Reactor (1624) Centrium Heavy Armor Plating (2497) Exp. Core Analyzer (1598) Adv. Kinecellerator (3931) Linear Accelerator (1223) Linear Accelerator (1223) Imp. System Restoration Module (1594) Imp. System Restoration Module (1594) Imp. System Restoration Module (1815) Adv. Targeting Computer (934) Adv. Weapon Cycler (2360) Antimissile System (2598) Quantum Reactor (2063) Com. HERF Cannon (1276) Exp. Force Field (5597) Com. Linear Accelerator (1729) Linear Accelerator (1605) Imp. System Restoration Module (2663) Imp. System Restoration Module (2663) Imp. Remote Shield (4162) Imp. Heavy Siege Treads (1540) Quantum Reactor (2275) Imp. Heavy Siege Treads (1540) Centrium Heavy Armor Plating (1972) Imp. Heavy Siege Treads (1540) Centrium Heavy Armor Plating (2137) Quantum Reactor (2699) Linear Accelerator (1970) Particle Reactor (2506) Adv. Targeting Computer (943) Exp. Core Analyzer (1650) Adv. Kinecellerator (9071) Enh. Armored Medium Treads (4372) Enh. Armored Medium Treads (4372) Enh. Armored Medium Treads (4372) Enh. Armored Medium Treads (4372) Game ------ Seed ScanCompactRipper Manual? 0 Play Time 04:33:42 Cumulative 844.1 hours Start 2022.11.12 @ 18:07:24 End 2022.11.12 @ 23:14:04 Sessions 1 Manual Loads 0 Difficulty Rogue Special Mode AFD2019/Pay2Buy Game No. 377 Rogue 376 Adventurer 1 Explorer 0 Win Type 0 Total 115 Types 29/11/16/4/2/1/48/3/1 Lore% 98 Gallery% 99 Achievement% 90 Wizard Run 0 Options --------- ASCII 1 Keyboard 1 Movement Numpad Keybinds 0 Fullscreen 0 Font 18/Smallcaps Map View 76x50 Tactical HUD 1 Map Filters NONE Filters NONE Steam X RUN: 53672fd0-c6e3-485a-a617-e7d38c500571